[Event "4NCL Div 2 2024-25"]
[Site "England"]
[Date "2025.01.26"]
[Round "4.23"]
[White "Fellowes, Billy"]
[Black "Eagleton, Greg T"]
[Result "1/2-1/2"]
[Annotator "TA"]
[ECO "B53"]
[WhiteElo "2055"]
[BlackElo "2053"]
[PlyCount "96"]
[EventDate "2024.11.23"]
[EventType "team-tourn"]
[EventCountry "ENG"]
[SourceTitle "playchess.com"]
[Source "ChessBase"]
[SourceQuality "1"]
[TimeControl "40/6000+30:3000+30"]

{[%evp 9,96,36,41,8,29,0,9,-8,-7,-11,1,-26,-19,-25,-34,-29,11,0,1,-5,41,12,43,50,60,26,62,70,67,74,91,71,73,31,44,44,95,87,88,89,103,107,131,87,127,125,134,112,126,69,84,85,168,94,102,100,100,94,86,100,97,90,101,104,100,113,108,96,114,111,113,42,57,29,54,29,29,26,25,0,0,0,0,0,79,0,0,0,0]} 1. e4 {[%emt 0:10:06]} c5 {[%emt 0:10:07]} 2. Nf3 {[%emt 0:00:13]} d6 {[%emt 0:00:09]} 3. d4 {[%emt 0:00:15]} cxd4 {[%emt 0:00:14]} 4. Qxd4 {[%emt 0:00:23]} Bd7 {[%emt 0:02:55]} 5. Nc3 {[%emt 0:11:08]} Nc6 {[%emt 0:02:00]} 6. Qe3 {[%emt 0:00:55] B53: Sicilian: 2...d6: Lines with Qxd4.} Nf6 {[%emt 0:02:24]} 7. Bb5 {[%emt 0:03:03]} g6 {[%emt 0:07:52]} 8. Bxc6 {[%emt 0:04:18]} Bxc6 {[%emt 0:00:15]} 9. Nd4 $146 {[%emt 0:05:59]} (9. O-O Bg7 10. e5 dxe5 11. Nxe5 O-O 12. a4 Qc7 13. Nxc6 bxc6 14. h3 Nd5 15. Nxd5 cxd5 {0-1 Heiser,J (905)-Giavassopoulos,T (1600) LSS No Engine Cup 133 Preliminary 0 2015}) 9... Bg7 {[%emt 0:13:21]} 10. Nxc6 {[%emt 0:12:32]} bxc6 {[%emt 0:00:09]} 11. O-O {[%emt 0:01:56]} O-O {[%emt 0:00:09]} 12. h3 {[%emt 0:10:52]} c5 {[%emt 0:12:48]} 13. e5 {[%emt 0:02:49]} Ne8 {[%emt 0:04:06]} 14. exd6 {[%emt 0:01:34]} exd6 {[%emt 0:00:09]} (14... Nxd6 $11 15. Qxc5 Qc8) 15. Rd1 {[%emt 0:04:02]} Qh4 {[%emt 0:09:57]} 16. Qf3 {[%emt 0:05:38]} Rd8 {[%emt 0:02:11]} 17. Ne4 {[%emt 0:00:12]} Qe7 {[%emt 0:01:57]} 18. Bg5 {[%emt 0:09:07]} f6 $1 {[%emt 0:00:52]} 19. Bf4 {[%emt 0:00:46]} d5 {[%emt 0:03:03] [#]} 20. Nc3 $36 {[%emt 0:00:16][%mdl 2048] White has strong initiative.} d4 {[%emt 0:00:21]} 21. Re1 {[%emt 0:01:18]} Qd7 {[%emt 0:01:16]} 22. Ne4 {[%emt 0:00:29]} Qd5 {[%emt 0:01:05]} ({Black should try} 22... Qf5 $14) 23. Qa3 $16 {[%emt 0:00:37][%csl LRa7,LRc5]} c4 {[%emt 0:04:56][%cal Bc5c4,Bc4d3][%mdl 32]} 24. Rad1 {[%emt 0:02:57][%cal Oe4c5]} Rf7 {[%emt 0:04:43]} 25. Qa4 {[%emt 0:09:09]} Rfd7 {[%emt 0:05:38]} 26. Nd2 {[%emt 0:01:02] White is much more active.} Rc8 {[%emt 0:01:29]} 27. Nf3 {[%emt 0:00:54]} (27. Nxc4 $2 Rxc4 28. b4 (28. Rxe8+ $2 Kf7 $19) 28... Nc7 $19) 27... d3 {[%emt 0:02:52]} 28. cxd3 {[%emt 0:00:09]} cxd3 {[%emt 0:00:05]} 29. Qa6 {[%emt 0:02:06]} (29. Re3 $16 {Hoping for Rdxd3.} Rc4 30. Qa3 (30. Rxe8+ $2 Kf7 $19) 30... Rxf4 31. Rexd3 (31. Rxe8+ Kf7 $16) 31... Rxf3 32. gxf3 (32. Rxd5 Rxa3 33. Rxd7 Ra6 $16) 32... Qg5+ 33. Kh1 Rxd3 34. Qxd3) 29... Rcd8 $14 {[%emt 0:06:32][%cal Bc8d8,Bd8d7,Bd7e7,Be7e5][%mdl 32]} 30. Re3 {[%emt 0:00:35]} Bf8 {[%emt 0:05:46]} (30... Qf5 $16 {keeps fighting.}) 31. Ne1 {[%emt 0:02:45]} (31. Rexd3 $18 Qf5 32. Rxd7 Rxd7 33. Qc4+ Kh8 34. Re1) 31... d2 $16 {[%emt 0:00:51]} 32. Nf3 {[%emt 0:00:08][%cal Oe3e2]} g5 {[%emt 0:03:35][%cal Bg6g5,Bg5g4][%mdl 32]} 33. Rxd2 {[%emt 0:01:53]} Qf7 {[%emt 0:01:18]} 34. Rxd7 {[%emt 0:00:16]} Rxd7 {[%emt 0:00:27]} 35. Bg3 {[%emt 0:01:05]} h5 {[%emt 0:00:39]} 36. h4 {[%emt 0:01:52]} g4 {[%emt 0:00:28]} 37. Ne1 {[%emt 0:00:12]} Ng7 {[%emt 0:00:18]} 38. Rd3 {[%emt 0:02:56]} Re7 {[%emt 0:00:17]} 39. Nc2 {[%emt 0:00:17]} Nf5 {[%emt 0:00:32]} 40. Qa5 {[%emt 0:03:06]} (40. Kh2 $16) 40... Nxg3 $14 {[%emt 0:02:13]} 41. Rxg3 {[%emt 0:50:38]} Re5 {[%emt 0:25:56]} 42. Qa6 {[%emt 0:00:00]} Bc5 {[%emt 0:01:19]} 43. Rd3 {[%emt 0:00:00]} Kg7 {[%emt 0:09:04]} 44. Qa4 {[%emt 0:00:00]} Kg6 {[%emt 0:02:20]} 45. Kf1 {[%emt 0:00:00]} Qe6 {[%emt 0:00:54][%cal Oc5f2] Strongly threatening ...Bxf2!.} 46. Qb3 {[%emt 0:00:00]} Qf5 {[%emt 0:01:41] [#]} (46... Qa6 $1 $11 {keeps the balance.}) 47. Qg8+ {[%emt 0:00:00]} ({White should try} 47. Rd2 $1 $16) 47... Kh6 $11 {[%emt 0:00:05][%csl Gc5][%cal Rf5f2]} 48. Qh8+ {[%emt 0:00:00]} Kg6 {[%emt 0:00:04] Weighted Error Value: White=0.16 (very precise) /Black=0.15 (very precise)   Mistake:       	White=4     	Black=4      Inaccurate:     	White=7     	Black=4      OK:         	White=19    	Black=16     Best:        	---       	Black=3      Strong:       	---       	Black=1} 1/2-1/2

[Event "4NCL Div 2 2024-25"]
[Site "England"]
[Date "2025.01.26"]
[Round "4.24"]
[White "Jaufarally, Nadia"]
[Black "Fallowfield, Jeremy R"]
[Result "1-0"]
[Annotator "TA"]
[ECO "B31"]
[WhiteElo "1929"]
[BlackElo "2072"]
[PlyCount "77"]
[EventDate "2024.11.23"]
[EventType "team-tourn"]
[EventCountry "ENG"]
[SourceTitle "playchess.com"]
[Source "ChessBase"]
[SourceQuality "1"]
[TimeControl "40/6000+30:3000+30"]

{[%evp 11,77,25,27,25,28,8,35,39,40,36,41,25,31,27,35,20,11,8,21,-89,-76,-147,-98,-138,-149,-144,-144,-147,-145,-133,-138,-143,-129,-152,-84,-142,-138,-190,-201,-268,-174,-175,-156,-213,-174,-315,0,0,185,203,198,197,189,203,204,132,139,107,118,99,252,247,236,232,287,268,1252,1258]} 1. e4 {[%emt 0:10:03]} c5 {[%emt 0:10:31]} 2. Nf3 {[%emt 0:00:11]} Nc6 {[%emt 0:00:29]} 3. Bb5 {[%emt 0:09:05]} g6 {[%emt 0:00:20]} 4. Bxc6 {[%emt 0:00:08]} dxc6 {[%emt 0:00:07]} 5. O-O {[%emt 0:00:16]} Bg7 {[%emt 0:00:18]} 6. d3 {[%emt 0:01:10]} Nf6 {[%emt 0:01:04]} 7. a4 {[%emt 0:02:41] B31: Sicilian: 2...Nc6 3 Bb5 g6.} a5 {[%emt 0:00:26]} 8. Nc3 {[%emt 0:03:49]} Bg4 {[%emt 0:07:03]} 9. h3 {[%emt 0:00:36] White is slightly better.} Bxf3 {[%emt 0:00:08]} 10. Qxf3 {[%emt 0:00:13]} O-O $146 {[%emt 0:01:32]} (10... Nd7 11. Qd1 e5 12. Be3 Qe7 13. Qd2 Nf8 14. f4 exf4 15. Bxf4 Ne6 16. Bh2 c4 {1-0 Rozentalis,E (2480)-Dzida,K (2385) Warsaw Najdorf Memorial op-A 2024 (6)}) 11. Be3 {[%emt 0:01:06]} Qd6 {[%emt 0:04:53]} 12. Qe2 {[%emt 0:05:23]} e5 {[%emt 0:01:50]} 13. Ra3 {[%emt 0:09:16]} b6 {[%emt 0:18:18]} 14. Rb3 {[%emt 0:02:11]} Rab8 {[%emt 0:01:01]} 15. f4 {[%emt 0:15:54]} (15. Nb1 $11 {keeps the balance.}) 15... Nh5 $17 {[%emt 0:01:05]} 16. Qf3 {[%emt 0:12:20] Inhibits Ng3.} (16. fxe5 Bxe5 17. Rf3) 16... Nxf4 {[%emt 0:05:29]} ({Black should try} 16... exf4 17. Bxf4 Nxf4 18. Qxf4 Qxf4 19. Rxf4 b5) 17. Bxf4 {[%emt 0:02:47]} exf4 {[%emt 0:00:10]} 18. Qxf4 {[%emt 0:00:05]} Be5 {[%emt 0:03:11]} 19. Qg4 {[%emt 0:00:58]} c4 {[%emt 0:02:37]} 20. dxc4 {[%emt 0:02:22]} Qc5+ {[%emt 0:00:08]} 21. Kh1 {[%emt 0:00:12]} Qxc4 {[%emt 0:00:15][%cal Rc4f1]} 22. Qe2 {[%emt 0:00:38]} Qe6 {[%emt 0:01:41]} (22... b5 $142 {Hoping for ...Qxe2.} 23. axb5 Qxe2 24. Nxe2 cxb5) 23. Qe3 {[%emt 0:02:50]} ({White should play} 23. Nd1) 23... Bc7 {[%emt 0:02:48]} 24. g4 {[%emt 0:08:46]} (24. Nd1 $17) 24... Qe5 {[%emt 0:02:48]} 25. Rf2 {[%emt 0:01:26] Inhibits Qh2+.} Rbd8 {[%emt 0:02:36] Prevents Nd1} 26. Qf3 {[%emt 0:01:00]} f6 {[%emt 0:04:34]} 27. Qe2 {[%emt 0:02:28] White is weak on the dark squares} (27. Ra3 $17 {might work better.}) 27... Rd4 {[%emt 0:03:01]} 28. Ra3 {[%emt 0:02:34]} (28. Qf3 $142) 28... Qg3 $2 {[%emt 0:03:04]} (28... b5 $19 29. axb5 cxb5) 29. Nb5 $11 {[%emt 0:03:19][%cal Bc3b5,Bb5c7,Bc7a6][%mdl 32]} Rd1+ $2 {[%emt 0:04:45]} 30. Qxd1 $18 {[%emt 0:00:27]} Qxf2 {[%emt 0:00:04][%csl Gc7][%cal Rf2h2]} 31. Nxc7 {[%emt 0:00:14]} Qf4 {[%emt 0:00:23] [#]} 32. Na6 {[%emt 0:04:30]} Qxe4+ {[%emt 0:00:35]} 33. Kg1 {[%emt 0:00:18]} f5 {[%emt 0:10:06]} 34. Qd3 {[%emt 0:01:29] and Qxe4 would now be decisive} Qe1+ {[%emt 0:01:21]} 35. Qf1 {[%emt 0:00:12]} Qd2 {[%emt 0:03:01] [#] This move loses the game for Black.} (35... Qxf1+ $16 36. Kxf1 fxg4+ 37. Kg2 Ra8) 36. Qc4+ $1 {[%emt 0:00:24]} Rf7 {[%emt 0:00:13]} 37. Rf3 {[%emt 0:02:02]} ({Weaker is} 37. Qxc6 Qd1+ 38. Kg2 Qe2+ (38... fxg4 39. Qe8+ Rf8 40. Qe6+ Kh8 41. Qe5+ Kg8 42. Qe6+ Kg7 43. Qe7+ Rf7 44. Qe5+ Kg8 45. hxg4 $11) 39. Kh1 fxg4 $11 (39... Qxa6 40. Rd3 $11)) 37... Kf8 {[%emt 0:02:33]} 38. Qc3 {[%emt 0:01:05]} ({Less strong is} 38. Qxc6 Qe1+ 39. Rf1 Qe3+ 40. Rf2 fxg4 41. Qd6+ Kg7 $16) 38... Qd1+ {[%emt 0:00:58]} (38... Qxc3 39. Rxc3 fxg4 40. hxg4 (40. Rxc6 gxh3 41. Kh2 Rf4 $18) 40... Rf4 41. Rxc6 Rxg4+ 42. Kh2 Rxa4 43. Rxb6 Kg7) 39. Rf1 {[%emt 0:00:22] Weighted Error Value: White=0.29 (precise) /Black=0.55  Loses game:     	---       	Black=1      Missed win:     	---       	Black=1      Mistake:       	White=6     	Black=4      Inaccurate:     	White=3     	Black=2      OK:         	White=7     	Black=10     Best:        	White=6     	Black=1      Strong:       	White=1     	---} 1-0

[Event "4NCL Div 2 2024-25"]
[Site "England"]
[Date "2025.01.26"]
[Round "4.25"]
[White "Gallagher, Daniel GH"]
[Black "Talsma, Paul"]
[Result "1-0"]
[Annotator "TA"]
[ECO "A16"]
[WhiteElo "2203"]
[BlackElo "2083"]
[PlyCount "69"]
[EventDate "2024.11.23"]
[EventType "team-tourn"]
[EventCountry "ENG"]
[SourceTitle "playchess.com"]
[Source "ChessBase"]
[SourceQuality "1"]
[TimeControl "40/6000+30:3000+30"]

{[%evp 9,69,37,56,48,56,17,33,35,56,60,54,58,46,17,29,-8,37,2,29,1,-7,0,0,0,0,-60,-64,-74,-53,-75,-12,-44,-35,-30,-19,-30,-22,-48,0,-13,0,-14,0,-21,39,20,30,31,45,36,134,130,131,121,258,288,304,324,295,262,266,258]} 1. Nf3 {[%emt 0:10:03]} Nf6 {[%emt 0:10:07]} 2. c4 {[%emt 0:00:04]} g6 {[%emt 0:01:30]} 3. Nc3 {[%emt 0:00:06]} d5 {[%emt 0:00:13]} 4. cxd5 {[%emt 0:00:05]} Nxd5 {[%emt 0:00:04]} 5. h4 {[%emt 0:00:05]} h5 {[%emt 0:26:01]} 6. Qb3 {[%emt 0:00:16] Against c5. A16: English Opening: 1...Nf6 with ...d5.} Nb6 {[%emt 0:03:17]} 7. Ng5 {[%emt 0:00:24]} e6 {[%emt 0:00:15]} 8. g3 {[%emt 0:00:19] White is slightly better.} Bg7 {[%emt 0:04:18]} 9. Bg2 {[%emt 0:03:48]} O-O {[%emt 0:00:45]} 10. O-O {[%emt 0:00:46]} Nc6 {[%emt 0:03:59]} 11. Qd1 $146 {[%emt 0:05:48]} (11. d3 Qe7 12. Nge4 Nd4 13. Qd1 e5 14. Bg5 f6 15. Be3 c6 16. Nd2 Nf5 17. Bxb6 axb6 {0-1 Bulgak,D (2044)-Sahbudak,B (2264) Wch U12 Montesilvano 2024 (6)}) 11... e5 {[%emt 0:01:07]} 12. a3 {[%emt 0:15:54]} Bg4 {[%emt 0:12:58]} 13. b4 {[%emt 0:00:55][%cal Bb2b4,Bb4b5][%mdl 32]} Rb8 {[%emt 0:04:05]} 14. Re1 {[%emt 0:15:49]} (14. Bxc6 $5 bxc6 $8 15. Qc2 $11) 14... Nd4 {[%emt 0:00:52]} 15. a4 {[%emt 0:01:01]} c6 {[%emt 0:02:22]} 16. b5 {[%emt 0:05:48]} Nd5 {[%emt 0:00:40] [#]} 17. Nge4 {[%emt 0:28:38]} ({White must play} 17. Ba3 $1 $11) 17... Nxc3 $15 {[%emt 0:12:16]} 18. Nxc3 {[%emt 0:00:19]} c5 {[%emt 0:00:26]} 19. d3 {[%emt 0:02:12]} b6 {[%emt 0:05:42][%csl Od4] Strong Square Black (d4)} (19... e4 $17 {and ...exd3 would now be decisive} 20. Bg5 Qa5 21. Nxe4 Nxe2+ 22. Rxe2 (22. Kh2 Nxg3 23. Qd2 Qxd2 $17) 22... Bxe2 (22... Bxa1 23. Qxa1 Bxe2 24. Nf6+ Kh8 25. Bh6 $18)) 20. Rb1 {[%emt 0:05:01]} Qd7 {[%emt 0:01:29]} 21. Be3 {[%emt 0:03:59]} Rbd8 {[%emt 0:02:06]} 22. Ne4 {[%emt 0:02:17][%cal Bc3e4,Be4d2,Bd2c4][%mdl 32]} Rc8 {[%emt 0:05:37]} 23. Nd2 {[%emt 0:03:04]} Bf5 {[%emt 0:02:22]} (23... Nf5 $15) 24. Nc4 {[%emt 0:00:41]} Be6 {[%emt 0:01:19]} (24... Bh3 {with more complications.} 25. a5 Bxg2 26. Kxg2 Rce8) 25. Qd2 {[%emt 0:00:41]} Rfd8 {[%emt 0:00:53]} 26. Rec1 {[%emt 0:00:42]} Bg4 {[%emt 0:00:49]} (26... Nf5 $11) 27. Bxd4 $14 {[%emt 0:00:40]} exd4 {[%emt 0:01:26]} 28. a5 {[%emt 0:00:33]} Qe6 {[%emt 0:01:09]} 29. Re1 {[%emt 0:00:21]} Re8 {[%emt 0:00:39]} ({Black should try} 29... Kh7 $14) 30. axb6 $16 {[%emt 0:02:03]} ({Much less strong is} 30. Bc6 Rxc6 31. bxc6 b5 32. Rxb5 Qxc6 $16) 30... axb6 {[%emt 0:00:02][%cal Oc8b8]} 31. Bc6 {[%emt 0:00:46]} Rb8 {[%emt 0:01:15] A mistake that costs the game.} 32. Bxe8 $18 {[%emt 0:00:24] White has a decisive advantage.} Qxe8 {[%emt 0:00:06]} 33. Qf4 {[%emt 0:00:34]} Be6 {[%emt 0:00:37]} 34. Qd6 {[%emt 0:01:38]} Bf8 {[%emt 0:00:30]} 35. Qc7 {[%emt 0:00:26] Weighted Error Value: White=0.15 (very precise) /Black=0.25 (precise)   Mistake:       	White=1     	Black=5      Inaccurate:     	White=7     	Black=2      OK:         	White=11    	Black=6      Best:        	---       	Black=1} 1-0

[Event "4NCL Div 2 2024-25"]
[Site "England"]
[Date "2025.01.26"]
[Round "4.26"]
[White "Mason, Donald J"]
[Black "Mihalik, Agoston"]
[Result "1/2-1/2"]
[Annotator "TA"]
[ECO "B40"]
[WhiteElo "2021"]
[BlackElo "2133"]
[PlyCount "113"]
[EventDate "2024.11.23"]
[EventType "team-tourn"]
[EventCountry "ENG"]
[SourceTitle "playchess.com"]
[Source "ChessBase"]
[SourceQuality "1"]
[TimeControl "40/6000+30:3000+30"]

{[%evp 9,113,0,-12,0,0,0,1,-8,21,13,14,0,0,0,0,-11,34,34,34,11,51,0,0,0,0,-27,-22,-5,0,-8,0,-20,0,0,0,-8,-12,-7,-24,-48,-27,-33,0,0,0,-15,0,0,0,-49,-4,-115,-120,-118,-111,-114,-114,-104,-102,-125,-107,-163,-168,-179,-173,-179,-157,-175,-148,-143,-139,-212,-225,-920,-1005,-947,-931,-1321,-603,-523,-8,-81,-59,-88,0,0,0,0,0,0,0,0,0,0,0,0,0,0,0,0,0,0,0,0,0,0]} 1. e4 {[%emt 0:10:04]} c5 {[%emt 0:10:06]} 2. Nf3 {[%emt 0:00:06]} e6 {[%emt 0:00:09]} 3. c3 {[%emt 0:01:40]} d5 {[%emt 0:00:26][%cal Bd7d5,Bd5d4][%mdl 32]} 4. e5 {[%emt 0:00:09]} d4 {[%emt 0:02:23]} 5. d3 {[%emt 0:00:22]} Nc6 {[%emt 0:00:43]} 6. g3 {[%emt 0:03:34] B40: Sicilian: 2...e6, Unusual lines.} Nge7 {[%emt 0:15:22]} 7. Bg2 {[%emt 0:19:05]} Ng6 {[%emt 0:08:00]} 8. Qe2 {[%emt 0:01:49]} dxc3 {[%emt 0:06:06]} 9. bxc3 {[%emt 0:04:55]} Qc7 {[%emt 0:00:51][%cal Oc8d7]} 10. Na3 $146 {[%emt 0:03:04]} (10. O-O Ncxe5 11. Nxe5 Qxe5 12. Be3 Be7 13. h4 O-O 14. d4 cxd4 15. cxd4 Qa5 16. h5 {½-½ Kulaots,K (2534)-Willow,J (2446) Fagernes op 2024 (3)}) 10... Ncxe5 {[%emt 0:12:13]} 11. Nxe5 {[%emt 0:03:40]} Qxe5 {[%emt 0:02:12]} 12. Nb5 {[%emt 0:04:45] [#]} Qxe2+ {[%emt 0:01:57]} 13. Kxe2 {[%emt 0:00:03]} Kd8 {[%emt 0:03:27] Inhibits Nc7.} 14. h4 {[%emt 0:04:00][%mdl 1024] White sacrificed a pawn White has compensation.} h5 {[%emt 0:02:30]} 15. Be4 {[%emt 0:10:56]} (15. a4 $14) 15... f5 {[%emt 0:03:31][%cal Oa7a6]} 16. Bg5+ {[%emt 0:04:29]} Kd7 {[%emt 0:04:16][%cal Oa7a6]} 17. Bg2 {[%emt 0:01:23]} a6 {[%emt 0:00:57]} 18. Na3 {[%emt 0:00:26]} Kc7 {[%emt 0:01:32]} 19. Nc4 {[%emt 0:01:47]} Rb8 {[%emt 0:05:08]} 20. a4 {[%emt 0:01:34]} Bd7 {[%emt 0:02:46]} (20... Be7 {simplifies} 21. Bxe7 Nxe7 22. d4 b6) 21. Rhb1 {[%emt 0:06:42]} Be7 {[%emt 0:14:25]} 22. Ne5 {[%emt 0:17:24]} Nxe5 {[%emt 0:02:17]} 23. Bxe7 {[%emt 0:00:05]} Bc6 {[%emt 0:02:03]} 24. Bxc6 {[%emt 0:01:00]} Kxc6 {[%emt 0:00:07]} 25. d4 {[%emt 0:02:07] Prevents b6} Nd7 {[%emt 0:04:23]} 26. a5 {[%emt 0:00:26]} cxd4 {[%emt 0:02:18]} 27. Ra4 {[%emt 0:05:41]} e5 {[%emt 0:02:21]} (27... dxc3 $2 28. Rc4+ Kd5 29. Rc7 $18) 28. cxd4 {[%emt 0:03:14]} Rhe8 {[%emt 0:00:03]} 29. Ba3 {[%emt 0:00:00]} (29. Bg5 $11) 29... exd4+ {[%emt 0:00:10]} 30. Kd1 {[%emt 0:00:11] [#]} (30. Kf1 $1 $11 Re4 31. Rc4+ Kd5 32. Rc7) 30... b5 $1 $17 {[%emt 0:01:44]} 31. axb6 {[%emt 0:00:17]} Rxb6 {[%emt 0:00:15]} 32. Rxb6+ {[%emt 0:00:43]} Nxb6 {[%emt 0:00:40]} 33. Rxd4 {[%emt 0:00:43][%mdl 4096] Endgame KRB-KRN. Black is a pawn up.} Re6 {[%emt 0:00:30] Against Rd6+} 34. Rd8 {[%emt 0:00:30]} g6 {[%emt 0:00:10]} 35. Rf8 {[%emt 0:00:30]} (35. Kc2 $17) 35... Kb5 $19 {[%emt 0:00:31]} 36. Rf7 {[%emt 0:00:31]} a5 {[%emt 0:00:16]} 37. Rc7 {[%emt 0:00:15]} Ka4 {[%emt 0:01:21]} 38. Bc1 {[%emt 0:00:35]} Nd5 {[%emt 0:00:22]} 39. Rc5 {[%emt 0:00:34]} Nb4 {[%emt 0:00:54]} 40. Rc3 {[%emt 0:00:39]} (40. Bd2 $17 {was worth a try.}) 40... Rc6 {[%emt 0:00:30]} 41. Rxc6 {[%emt 0:22:47]} (41. Rf3) 41... Nxc6 {[%emt 0:20:14] KB-KN. Black is a pawn up.} 42. Ke2 {[%emt 0:02:11]} Kb3 {[%emt 0:03:11]} 43. Ke3 {[%emt 0:02:09]} Ne5 {[%emt 0:07:25]} (43... a4 $142 44. Ke2 Ne5) 44. Kd4 {[%emt 0:02:03]} Nc4 {[%emt 0:00:31]} (44... Nf3+ $19 45. Ke3 Ne1) 45. Bh6 {[%emt 0:00:54]} (45. Bg5 $1 $11) 45... a4 $17 {[%emt 0:08:32]} 46. Bf8 {[%emt 0:00:08]} Nb2 {[%emt 0:00:05]} ({Better is} 46... Nb6 $17) 47. Ke5 $11 {[%emt 0:05:34] The position is equal.} Nd3+ {[%emt 0:03:08]} 48. Kf6 {[%emt 0:00:12]} Nb4 {[%emt 0:00:11]} 49. Kxg6 {[%emt 0:00:46]} a3 $1 {[%emt 0:00:06]} 50. Kxh5 {[%emt 0:02:07]} a2 {[%emt 0:01:01]} 51. Bg7 {[%emt 0:00:11]} Nd3 {[%emt 0:03:40][%cal Od3b2]} 52. Ba1 {[%emt 0:09:38]} Kc2 {[%emt 0:00:22][%cal Oc2b1]} 53. Kg6 {[%emt 0:00:22]} Kb1 {[%emt 0:00:10]} 54. Bf6 {[%emt 0:00:35]} Nb2 {[%emt 0:00:07]} 55. h5 $1 {[%emt 0:00:03][%cal Oh5h6]} a1=Q {[%emt 0:09:22] White must now prevent ...Qa8.} (55... a1=B $2 {loses.} 56. h6 $18 (56. Kxf5 Nd1 $18)) 56. h6 $1 {[%emt 0:00:06][%cal Oh6h7] h7! is the strong threat.} Qa7 {[%emt 0:00:00]} 57. h7 {[%emt 0:09:16] Whites escaped into a draw.   Weighted Error Value: White=0.35/Black=0.28 (precise)   Mistake:       	White=6     	Black=1      Inaccurate:     	White=1     	Black=5      OK:         	White=20    	Black=18     Best:        	White=3     	Black=2      Strong:       	White=2     	Black=2} 1/2-1/2

[Event "4NCL Div 2 2024-25"]
[Site "England"]
[Date "2025.01.26"]
[Round "4.27"]
[White "Goh, Jinghan Cameron"]
[Black "Pal, Rohan"]
[Result "1-0"]
[Annotator "TA"]
[ECO "E07"]
[WhiteElo "2017"]
[BlackElo "1970"]
[PlyCount "71"]
[EventDate "2024.11.23"]
[EventType "team-tourn"]
[EventCountry "ENG"]
[SourceTitle "playchess.com"]
[Source "ChessBase"]
[SourceQuality "1"]
[TimeControl "40/6000+30:3000+30"]

{[%evp 18,71,24,12,31,36,33,31,40,31,31,36,29,0,0,-10,-15,-10,126,131,227,226,231,100,104,91,79,55,182,182,321,309,280,319,428,453,464,460,468,468,468,453,487,491,762,719,770,753,847,847,786,562,1445,745,29998,29999]} 1. d4 {[%emt 0:10:09]} d5 {[%emt 0:10:06]} 2. c4 {[%emt 0:00:08]} e6 {[%emt 0:00:03]} 3. Nf3 {[%emt 0:00:10]} Nf6 {[%emt 0:00:03]} 4. g3 {[%emt 0:00:05]} Be7 {[%emt 0:00:03]} 5. Bg2 {[%emt 0:00:06]} O-O {[%emt 0:00:04]} 6. O-O {[%emt 0:00:09]} c6 {[%emt 0:00:02]} 7. Nc3 {[%emt 0:01:07]} Nbd7 {[%emt 1:33:39]} 8. Qd3 {[%emt 0:01:10]} b6 {[%emt 0:00:00]} 9. e4 {[%emt 0:00:26]} Ba6 {[%emt 0:00:00]} 10. b3 {[%emt 0:00:23]} dxe4 {[%emt 0:00:00] E07: Closed Catalan: Main Line (5 Nf3 0-0 6 0-0 Nbd7).} 11. Nxe4 {[%emt 0:00:11]} b5 {[%emt 0:00:00]} 12. Nxf6+ {[%emt 0:07:42]} Bxf6 {[%emt 0:00:00] White is slightly better.} 13. Bf4 {[%emt 0:16:29]} bxc4 {[%emt 0:00:00]} 14. bxc4 {[%emt 0:00:52]} c5 $146 {[%emt 0:00:00]} (14... Nb6 15. Rac1 Rc8 16. Rfd1 Qe7 17. Qb3 Rfd8 18. c5 Nd5 19. Bd6 Qb7 20. Qxb7 Bxb7 {½-½ Zia,T (2241)-Md,S (2109) BAN-chB 48th 2024 (3)}) 15. Rfd1 {[%emt 0:14:05][%cal Bf1d1,Bd1d4,Bd4g4][%mdl 32]} Rc8 $1 {[%emt 0:00:00]} 16. Rac1 {[%emt 0:06:34]} cxd4 {[%emt 0:00:00]} 17. Nxd4 {[%emt 0:03:16] [#]} Nc5 {[%emt 0:00:00]} (17... e5 $11 18. Nc6 Rxc6 19. Qxd7 (19. Bxc6 Nb8 $15) 19... Rxc4 (19... Qxd7 20. Rxd7 Rxc4 21. Bd5 $14) 20. Qxa7 exf4 21. Qxa6 Rxc1 22. Rxc1 g6) 18. Qe3 $16 {[%emt 0:01:58] White is more active.} Bxd4 {[%emt 0:00:00]} (18... Qb6 $16) 19. Rxd4 $18 {[%emt 0:02:22]} (19. Qxd4 Qxd4 20. Rxd4 Bb7 $16) 19... Qa5 {[%emt 0:00:00][%cal Of8d8]} 20. Be5 {[%emt 0:13:20]} (20. Bd6 $18) 20... f6 $16 {[%emt 0:00:00]} 21. Bd6 {[%emt 0:01:22]} Rfe8 {[%emt 0:00:00]} 22. Rg4 {[%emt 0:05:42]} Kf7 {[%emt 0:00:00] [#] Black cannot hold the game after this.} (22... h5 $14 23. Rd4 Bb7) 23. Rd1 $1 $40 {[%emt 0:04:53][%mdl 128] White attacks with force.} Red8 {[%emt 0:00:00]} (23... Qb6 {might work better.} 24. Rgd4 Kg8) 24. Rgd4 {[%emt 0:08:21]} Re8 {[%emt 0:00:00]} 25. Bf3 {[%emt 0:02:10]} Bb7 {[%emt 0:00:21]} 26. Bh5+ {[%emt 0:01:11] A strong pair of Bishops.} Kg8 {[%emt 0:01:58]} 27. Bxe8 {[%emt 0:01:08]} Rxe8 {[%emt 0:00:04]} 28. Bxc5 {[%emt 0:00:20]} Qxc5 {[%emt 0:00:07]} 29. Rd8 {[%emt 0:00:14]} Qc6 {[%emt 0:01:35][%csl Gb7][%cal Rc6g2]} 30. Rxe8+ {[%emt 0:00:06]} (30. Qxa7 $2 Qh1#) 30... Qxe8 {[%emt 0:00:04][%mdl 4096] Endgame KQR-KQB} (30... Kf7 $142 31. Qxe6+ Qxe6 32. Rxe6 Kxe6) 31. Qc5 {[%emt 0:01:04][%cal Oc5c7] And now Qc7! would win.} Bf3 {[%emt 0:00:55]} 32. Rd3 {[%emt 0:01:31]} Be4 {[%emt 0:00:26]} 33. Rd4 {[%emt 0:01:25]} Qb8 {[%emt 0:00:14]} 34. Qd6 {[%emt 0:00:42]} ({And not} 34. Rxe4 Qb1+ 35. Kg2 Qxe4+ 36. Kg1 Qb1+ 37. Kg2 Qb7+ 38. Kh3 h6 $11) 34... Qb1+ {[%emt 0:00:27]} 35. Rd1 {[%emt 0:00:05]} Qxa2 {[%emt 0:00:08]} 36. Qxe6+ {[%emt 0:00:06] Weighted Error Value: White=0.20 (precise) /Black=0.81  Mistake:       	White=1     	Black=5      Inaccurate:     	White=1     	Black=2      OK:         	White=9     	Black=3      Best:        	White=2     	Black=3      Strong:       	White=1     	Black=1} 1-0